{"text_format":"1","workbook":"xlsx","n_sheets":14,"sheets":["Erläuterungen","allg. Daten","Gesamtübersicht Beratungslandsc","hauptamtliches Personal","nebenamtliches Personal","Büroausgaben ","Reiseausgaben","Übernachtungskosten","Raummiete_ Nebenausgaben ","Leasing","Ausstattung_ Ersatzbeschaffung","Fortbildung","sonstige_ Sachausgaben","Zusammenfassung"],"not_rendered":{"charts":0,"images":0,"macros":1,"external_links":0,"defined_names":7,"comments":0,"pivot_tables":0},"unopened":[],"bounds":{"document_bytes":16777216,"sheet_cells":100000,"rows_first":2000,"rows_last":500,"rows_between":2000,"halvings":0,"cell_chars":16384,"cell_head_chars":4096},"cells_cut":0,"cells_raw":0,"read":"whole","date_system":"1900"}

{"sheet":"Erläuterungen","index":0,"n_rows":108,"n_cols":2,"rows_kept":108,"cut":false,"hidden":false,"merged":[[79,0,83,6],[38,0,43,7],[103,0,104,6],[107,0,109,6],[86,0,87,6],[90,0,92,6],[95,0,100,6],[66,0,67,6],[70,0,76,6],[3,1,3,6],[46,0,55,6],[58,0,63,6],[11,0,13,7],[18,0,19,7],[22,0,23,7],[28,0,30,7],[6,0,8,7]]}
["Allgemeine Hinweise für den Umgang und der Verfahrensweise mit dieser Datei"]
["Wenn Sie in der Bearbeitung unsicher sind, schauen sie  zuerst in diesen Erläuterungen nach!! "]
[]
[null,"Datei zur elektronischen Abrechnung von Fördergeldern"]
[]
["Lieferung der Daten:"]
["Die Datei ist mit unverändertem Namen bis zum 30.04.2023 an den Landkreis Vorpommern-Greifswald an eine der folgenden E-Mail Adressen\nMagdalena.Ullrich@kreis-vg.de bzw. Michael.Schumacher@kreis-vg.de zu senden."]
[]
[]
[]
["Ausfüllhilfe"]
["Nutzen Sie bitte beim Ausfüllen die Dropdownfelder. In dem sich öffnenden Fenster können Sie die notwendigen Angaben auswählen und durch anklicken einfügen. Nur die dort eingetragenen Werte werden  akzeptiert. Es sind nur die gelb markierten Felder auszufüllen!"]
[]
[]
[]
["Nutzung der eingefügten Button:"]
[]
["Zeilen einfügen"]
["Um Zeilen anzufügen nutzen sie bitte den Button \"Zeile einfügen\". Dazu setzen Sie bitte den Mauszeiger an den Anfang der letzten farblich markierten Zeile."]
[]
[]
["Drucken"]
["Die zur Unterzeichnung benötigten Tabellenblätter können Sie durch betätigen des Button \"Drucken\" ausdrucken."]
[]
[]
["Dokumente"]
[]
["Verfahren mit den Nachweisdokumenten"]
[" Nach dem Drucken bitte unterschreiben und stempeln und als eingescannte Dokumente im .pdf-Format der E-Mail, mit der zu sendenden  Exceldatei anfügen. Sollten Sie nicht die Möglichkeit  haben, Dokumente einzuscannen, dann senden Sie diese bitte an folgende Postadresse:"]
[]
[]
["Landkreis Vorpommern-Greifswald"]
["Sozialamt SG 50.1"]
["Postfach 1132"]
["17464 Greifswald"]
[]
[]
["Form der Abrechnung"]
["Sollten Sie sich für eine pauschale Abrechnung entscheiden, sind die jeweiligen Beratungsarten anzugeben und ggf. die Pauschalen für \"mind 2 Standorte\", \"mobile\" und \"digitale\" Angebote einzutragen. Zusätzlich sind die Tabellen \"hauptamtliches Personal\" und \"nebenamtliches Personal\" auszufüllen. Das Ausfüllen der anderen Tabellen entfällt. Bei einer Spitzabrechnung  sind alle aufgeführten Tabellen kpl. auszufüllen. Im Verwendungsnachweis sind die gesamten Einnahmen und Augaben für das Projektjahr abzurechnen."]
[]
[]
[]
[]
[]
[]
["hauptamtliches Personal"]
["Beim Ausfüllen des Reiters \"hauptamtliches Personal\" ist unbedingt der Name oder Pseudonym des/der Beschäftigten anzugeben. Wichtig ist hier, dass man die einzelnen Beschäftigten erkennen und voneinander unterscheiden kann. Ebenfalls ist einzutragen seit wann der/die Beschäftigte bei Ihnen tätig ist.  Weiterhin ist die Qualifikation der Fachkraft in der jeweiligen Spalte zu hinterlegen. Hier ist ausschließlich nur die der Fachkraft einzutragen. Für die Verwaltungskraft muss keine hinterlegt werden.                                                                   \nDie Personalkosten sind unter „abgerechneter Betrag“ monatlich aufzuschlüsseln. Eine Eingabe für alle 12 Monate kann nur erfolgen, wenn der Lohn in jedem der 12 Monat gleich hoch war. Jahresonderzahlungen, Urlaubsgeld, Prämien etc. wären Veränderungen, die dazu führen, dass der Lohn gesondert von den veränderten Monaten aufgeschlüsselt werden muss. Alle gleichbleibenden Monate können zusammengefasst werden.\n"]
[]
[]
[]
[]
[]
[]
[]
[]
[]
[]
["nebenamtliches Personal "]
["Hierunter versteht man Kräfte, die eine Tätigkeit nebenberuflich oder als freier Mitarbeiter ausüben und für Ihre Tätigkeit mit einem Honorare/Aufwandsentschädigungen bezahlt werden.\nDie Honorarausgaben müssen mit Honorarverträgen und -rechnungen sowie mit Nachweisen über die Eignung der Honorarkraft und mit Stundennachweisen belegt werden können.\n"]
[]
[]
[]
[]
[]
[]
["Büroausgaben"]
["Hierunter versteht man alles was zur Büroausstattung zählt. Unter anderem Druckerpatronen, Papier, Schreibmaterial, Fachliteratur, Locher, Taschenrechner etc. . "]
[]
[]
["Reiseausgaben"]
["Hierunter werden alle Reisen monatlich aufgeschlüsselt, die im Rahmen der Tätigkeit notwendig sind. Kosten für Fahrten mit dem öffentlichen Nahverkehr werden unter dem Punkt sonstige Ausgaben erfasst. Ebenfalls werden hierunter Kosten für das Parken eingetragen. \nDie Kilometer sind jeweils nach Fahrten mit dem Dienstfahrzeug sowie mit dem Privatfahrzeug zu unterscheiden. "]
[]
[]
[]
[]
[]
[]
[]
["Übernachtungskosten"]
["Hierunter werden die Kosten für Hotel, Pension etc. sowie für das Tagegeld nach dem Landesreisekostengesetz - LRKG M-V eingetragen.\nEs ist einzutragen ob und wie oft ein unentgeltliches Mittag- und/oder Abendessen in Anspruch genommen wurde. Das Tagegeld müsste dann für Frühstück um 20% und für Mittag bzw. Abendbrot um je 40% gekürzt werden."]
[]
[]
[]
[]
[]
["Raummiete-Mietnebenausgaben"]
["Hier werden die monatlichen Kosten sowie die qm² der genutzen Fläche je nach Beratungsart eingetragen. "]
[]
[]
["Leasing"]
["Hier ist einzutragen wer Leasingeber ist, sowie das Fahrzeug  mit entsprechendem Kennzeichen (zur besseren Nachvollziehbarkeit). Weiterhin ist die jeweilige monatliche Belastung einzutragen. "]
[]
[]
[]
["Ausstattung-Ersatzbeschaffung"]
["Grundsätzlich muss die Anschaffund bzw. der Ersatz von Ausstattungsgegenständen für die Umsetzung des Projektes zwingend erforderlich sein. Werden Ausstattungsgegenstände nicht ausschließlich durch das Projekt genutzt, ist nur der entsprechende auf das Projekt anfallende Anteil einzutragen. Grundsätzlich ist hier die Abschreibung bei der Anschaffung bzw. dem Ersatz von Ausstattungsgegenständen zu berücksichtigen."]
[]
[]
[]
[]
[]
[]
["Fortbildung"]
["Hier ist einzutragen wer die Fortbildung besucht hat, der Inhalt der Fortbildung, der Zeitpunkt der Fortbildung sowie die Kosten für die Fortbildung. "]
[]
[]
["sonstige Sachausgaben"]
["Einzutragen sind hier Kosten wie z.B.: Kfz-Steuer,Kfz-Haftpflicht, Wartung und Reperatur von Dienstfahrzeugen (mit Kennzeichen), Öffentlichkeitsarbeit, Wartung und Service, Bankgebühren etc. ."]

{"sheet":"allg. Daten","index":1,"n_rows":34,"n_cols":6,"rows_kept":34,"cut":false,"hidden":false,"merged":[[33,2,33,4],[10,0,10,5],[11,0,11,5]]}
[]
[]
[]
["Landkreis Vorpommern Greifswald "]
["Sozialamt"]
["An der Kürassierkaserne 9"]
["17309 Pasewalk"]
[]
[]
[]
["VERWENDUNGSNACHWEIS (einfach)"]
["gemäß den Allgemeinen Nebenbestimmungen (ANBest-P / -K)"]
[]
[]
["Zuwendungsempfänger: "]
[]
["E-Mail:"]
[]
["Straße:"]
["PLZ / ORT:"]
[]
["Zuwendungsbescheid vom:"]
[]
["Maßnahmetitel:"]
[]
["Bewilligungszeitraum: ","vom",null,"bis"]
[]
["Höhe der Zuwendung:"]
[]
["Nachweiszeitraum: ","vom",null,"bis"]
[]
["Finanzierungsart:",null,"Anteilsfinanzierung",null,null,""]
[]
["Zuwendungsart:",null,"Projektförderung"]

{"sheet":"Gesamtübersicht Beratungslandsc","index":2,"n_rows":67,"n_cols":7,"rows_kept":67,"cut":false,"hidden":false,"merged":[[1,0,1,5],[2,0,2,5],[3,5,3,6],[20,0,20,4],[21,0,21,5],[3,1,3,2],[3,3,3,4],[12,1,12,2],[12,3,12,4]]}
[]
["Einnahmen"]
["(Aufstellung des erhaltenen Zuschusses und sonstiger Einnahmen im Zusammenhang mit dem geförderten Vorhaben)"]
[null,"allgemeine Soziale Beratung (ASB)",null,"Schuldner- und \nVerbraucherinsolvenzberatung (SIB)",null,"Sucht- und Drogenberatung (SBB)"]
["Einnahmeart","Einnahmen","abgerechnete Einnahmen","Einnahmen","abgerechnete Einnahmen","Einnahmen","abgerechnete Einnahmen"]
[]
["Zuwendungen aus Landesmitteln"]
["Zuwendung aus Kreismitteln"]
["Eigenmittel des Trägers"]
["Summe der Gesamteinnahmen",{"$f":"SUM(B7:B9)","v":0},0,0,0,0,0]
[]
[]
["Einnahmeart","Ehe- und Lebensberatung (EL)",null,"Beratung für \nsexuelle Gesundheit und Aufklärung (G)",null,"Gesamte Einnahmen ","Gesamte abgerechnete Einnahmen"]
[null,"Einnahmen","abgerechnete Einnahmen","Einnahmen","abgerechnete Einnahmen"]
["Zuwendungen aus Landesmitteln",null,null,null,null,{"$f":"SUM(B7+D7+F7+B15+D15)","v":0},0]
["Zuwendung aus Kreismitteln",null,null,null,null,0,0]
["Eigenmittel des Trägers",null,null,null,null,0,0]
["Summe der Gesamteinnahmen",{"$f":"SUM(B15:B17)","v":0},{"$f":"SUM(C15:C17)","v":0},0,0,{"$f":"SUM(F15:F17)","v":0},{"$f":"SUM(G15:G17)","v":0}]
[]
[]
["Ausgaben"]
["(Aufstellung der tatsächlichen Ausgaben im Zusammenhang mit dem geförderten Vorhaben)"]
["Personalausgaben","ASB","SIB","SBB","EL","G"]
["hauptamtliches_Personal",{"$f":"SUMIF('hauptamtliches Personal'!$C$7:$C$42,\"ASB\",'hauptamtliches Personal'!$I$7:$I$42)","v":0},{"$f":"SUMIF('hauptamtliches Personal'!$C$7:$C$42,\"SIB\",'hauptamtliches Personal'!$I$7:$I$42)","v":0},{"$f":"SUMIF('hauptamtliches Personal'!$C$7:$C$42,\"SBB\",'hauptamtliches Personal'!$I$7:$I$42)","v":0},{"$f":"SUMIF('hauptamtliches Personal'!$C$7:$C$42,\"EL\",'hauptamtliches Personal'!$I$7:$I$42)","v":0},{"$f":"SUMIF('hauptamtliches Personal'!$C$7:$C$42,\"G\",'hauptamtliches Personal'!$I$7:$I$42)","v":0}]
["nebenamtliches_Personal",{"$f":"SUMIF('nebenamtliches Personal'!$C$8:$C$41,\"ASB\",'nebenamtliches Personal'!$G$8:$G$41)","v":0},{"$f":"SUMIF('nebenamtliches Personal'!$C$8:$C$41,\"SIB\",'nebenamtliches Personal'!$G$8:$G$41)","v":0},{"$f":"SUMIF('nebenamtliches Personal'!$C$8:$C$41,\"SBB\",'nebenamtliches Personal'!$G$8:$G$41)","v":0},{"$f":"SUMIF('nebenamtliches Personal'!$C$8:$C$41,\"EL\",'nebenamtliches Personal'!$G$8:$G$41)","v":0},{"$f":"SUMIF('nebenamtliches Personal'!$C$8:$C$41,\"G\",'nebenamtliches Personal'!$G$8:$G$41)","v":0}]
["Stellenanteil VzE Fachkräfte",{"$f":"SUMIFS('hauptamtliches Personal'!$F$7:$F$42,'hauptamtliches Personal'!$C$7:$C$42,\"ASB\",'hauptamtliches Personal'!$E$7:$E$42,\"Fachkraft\")","v":0},{"$f":"SUMIFS('hauptamtliches Personal'!$F$7:$F$42,'hauptamtliches Personal'!$C$7:$C$42,\"SIB\",'hauptamtliches Personal'!$E$7:$E$42,\"Fachkraft\")","v":0},{"$f":"SUMIFS('hauptamtliches Personal'!$F$7:$F$42,'hauptamtliches Personal'!$C$7:$C$42,\"SBB\",'hauptamtliches Personal'!$E$7:$E$42,\"Fachkraft\")","v":0},{"$f":"SUMIFS('hauptamtliches Personal'!$F$7:$F$42,'hauptamtliches Personal'!$C$7:$C$42,\"EL\",'hauptamtliches Personal'!$E$7:$E$42,\"Fachkraft\")","v":0},{"$f":"SUMIFS('hauptamtliches Personal'!$F$7:$F$42,'hauptamtliches Personal'!$C$7:$C$42,\"G\",'hauptamtliches Personal'!$E$7:$E$42,\"Fachkraft\")","v":0}]
["Stellenanteil VzE Verwaltungskräfte",{"$f":"SUMIFS('hauptamtliches Personal'!$F$7:$F$42,'hauptamtliches Personal'!$C$7:$C$42,\"ASB\",'hauptamtliches Personal'!$E$7:$E$42,\"Verwaltungskraft\")","v":0},{"$f":"SUMIFS('hauptamtliches Personal'!$F$7:$F$42,'hauptamtliches Personal'!$C$7:$C$42,\"SIB\",'hauptamtliches Personal'!$E$7:$E$42,\"Verwaltungskraft\")","v":0},{"$f":"SUMIFS('hauptamtliches Personal'!$F$7:$F$42,'hauptamtliches Personal'!$C$7:$C$42,\"SBB\",'hauptamtliches Personal'!$E$7:$E$42,\"Verwaltungskraft\")","v":0},{"$f":"SUMIFS('hauptamtliches Personal'!$F$7:$F$42,'hauptamtliches Personal'!$C$7:$C$42,\"EL\",'hauptamtliches Personal'!$E$7:$E$42,\"Verwaltungskraft\")","v":0},{"$f":"SUMIFS('hauptamtliches Personal'!$F$7:$F$42,'hauptamtliches Personal'!$C$7:$C$42,\"G\",'hauptamtliches Personal'!$E$7:$E$42,\"Verwaltungskraft\")","v":0}]
["Gesamtausgaben Personal",{"$f":"SUM(B24:B25)","v":0},{"$f":"SUM(C24:C25)","v":0},0,0,0]
[]
[]
["Sachkosten Pauschal"]
["Beratungsart (bitte auswählen)","ASB","SIB","SBB","EL","G","Gesamt"]
["Pauschal pro VzÄ",{"$f":"IF(B26=0,\"\",6000)","v":""},{"$f":"IF(C26=0,\"\",7000)","v":""},{"$f":"IF(D26=0,\"\",6000)","v":""},{"$f":"IF(E26=0,\"\",6000)","v":""},"",{"$f":"SUM(B33:F33)","v":0}]
["Stellenanteil",{"$f":"IF(B32=\"\",\"\",B26)","v":0},{"$f":"IF(C32=\"\",\"\",C26)","v":0},{"$f":"IF(D32=\"\",\"\",D26)","v":0},{"$f":"IF(E32=\"\",\"\",E26)","v":0},{"$f":"IF(F32=\"\",\"\",F26)","v":0},{"$f":"SUM(B34:F34)","v":0}]
["mind. 2 Standorte"]
["mobile Angebote"]
["digitale Angebote"]
["Gesamtausgaben Sachkosten",{"$f":"IF(B33=\"\",\"\",(B33*B34)+B35+B36+B37)","v":""},{"$f":"IF(C33=\"\",\"\",(C33*C34)+C35+C36+C37)","v":""},"","","",0]
[]
["Sachkosten Einzelnachweis"]
["Bürosausgaben",{"$f":"SUMIF('Büroausgaben '!$C$7:$C$38,\"ASB\",'Büroausgaben '!$F$7:$F$38)","v":0},{"$f":"SUMIF('Büroausgaben '!$C$7:$C$38,\"SIB\",'Büroausgaben '!$F$7:$F$38)","v":0},{"$f":"SUMIF('Büroausgaben '!$C$7:$C$38,\"SBB\",'Büroausgaben '!$F$7:$F$38)","v":0},{"$f":"SUMIF('Büroausgaben '!$C$7:$C$38,\"EL\",'Büroausgaben '!$F$7:$F$38)","v":0},{"$f":"SUMIF('Büroausgaben '!$C$7:$C$38,\"G\",'Büroausgaben '!$F$7:$F$38)","v":0},0]
["Reiseausgaben ",{"$f":"SUMIF(Reiseausgaben!$C$7:$C$38,\"ASB\",Reiseausgaben!$R$7:$R$38)","v":0},{"$f":"SUMIF(Reiseausgaben!$C$7:$C$38,\"SIB\",Reiseausgaben!$R$7:$R$38)","v":0},{"$f":"SUMIF(Reiseausgaben!$C$7:$C$38,\"SBB\",Reiseausgaben!$R$7:$R$38)","v":0},{"$f":"SUMIF(Reiseausgaben!$C$7:$C$38,\"EL\",Reiseausgaben!$R$7:$R$38)","v":0},{"$f":"SUMIF(Reiseausgaben!$C$7:$C$38,\"G\",Reiseausgaben!$R$7:$R$38)","v":0},0]
["Übernachtungskosten",{"$f":"SUMIF(Übernachtungskosten!$B$8:$B$43,\"ASB\",Übernachtungskosten!$P$8:$P$43)","v":0},{"$f":"SUMIF(Übernachtungskosten!$B$8:$B$43,\"SIB\",Übernachtungskosten!$P$8:$P$43)","v":0},{"$f":"SUMIF(Übernachtungskosten!$B$8:$B$43,\"SBB\",Übernachtungskosten!$P$8:$P$43)","v":0},{"$f":"SUMIF(Übernachtungskosten!$B$8:$B$43,\"EL\",Übernachtungskosten!$P$8:$P$43)","v":0},{"$f":"SUMIF(Übernachtungskosten!$B$8:$B$43,\"G\",Übernachtungskosten!$P$8:$P$43)","v":0},0]
["Raummiete / Nebenkosten",{"$f":"SUMIF('Raummiete_ Nebenausgaben '!$C$7:$C$33,\"ASB\",'Raummiete_ Nebenausgaben '!$J$7:$J$33)","v":0},{"$f":"SUMIF('Raummiete_ Nebenausgaben '!$C$7:$C$33,\"SIB\",'Raummiete_ Nebenausgaben '!$J$7:$J$33)","v":0},{"$f":"SUMIF('Raummiete_ Nebenausgaben '!$C$7:$C$33,\"SBB\",'Raummiete_ Nebenausgaben '!$J$7:$J$33)","v":0},{"$f":"SUMIF('Raummiete_ Nebenausgaben '!$C$7:$C$33,\"EL\",'Raummiete_ Nebenausgaben '!$J$7:$J$33)","v":0},{"$f":"SUMIF('Raummiete_ Nebenausgaben '!$C$7:$C$33,\"G\",'Raummiete_ Nebenausgaben '!$J$7:$J$33)","v":0},0]
["Leasing",{"$f":"SUMIF(Leasing!$C$7:$C$31,\"ASB\",Leasing!$L$7:$L$31)","v":0},{"$f":"SUMIF(Leasing!$C$7:$C$31,\"SIB\",Leasing!$L$7:$L$31)","v":0},{"$f":"SUMIF(Leasing!$C$7:$C$31,\"SBB\",Leasing!$L$7:$L$31)","v":0},{"$f":"SUMIF(Leasing!$C$7:$C$31,\"EL\",Leasing!$L$7:$L$31)","v":0},{"$f":"SUMIF(Leasing!$C$7:$C$31,\"G\",Leasing!$L$7:$L$31)","v":0},0]
["Ausstattung / Ersatzbeschaffung",{"$f":"SUMIF('Ausstattung_ Ersatzbeschaffung'!$C$7:$C$30,\"ASB\",'Ausstattung_ Ersatzbeschaffung'!$I$7:$I$30)","v":0},{"$f":"SUMIF('Ausstattung_ Ersatzbeschaffung'!$C$7:$C$30,\"SIB\",'Ausstattung_ Ersatzbeschaffung'!$I$7:$I$30)","v":0},{"$f":"SUMIF('Ausstattung_ Ersatzbeschaffung'!$C$7:$C$30,\"SBB\",'Ausstattung_ Ersatzbeschaffung'!$I$7:$I$30)","v":0},{"$f":"SUMIF('Ausstattung_ Ersatzbeschaffung'!$C$7:$C$30,\"EL\",'Ausstattung_ Ersatzbeschaffung'!$I$7:$I$30)","v":0},{"$f":"SUMIF('Ausstattung_ Ersatzbeschaffung'!$C$7:$C$30,\"G\",'Ausstattung_ Ersatzbeschaffung'!$I$7:$I$30)","v":0},0]
["Fortbildung",{"$f":"SUMIF(Fortbildung!$C$7:$C$30,\"ASB\",Fortbildung!$J$7:$J$30)","v":0},{"$f":"SUMIF(Fortbildung!$C$7:$C$30,\"SIB\",Fortbildung!$J$7:$J$30)","v":0},{"$f":"SUMIF(Fortbildung!$C$7:$C$30,\"SBB\",Fortbildung!$J$7:$J$30)","v":0},{"$f":"SUMIF(Fortbildung!$C$7:$C$30,\"EL\",Fortbildung!$J$7:$J$30)","v":0},{"$f":"SUMIF(Fortbildung!$C$7:$C$30,\"G\",Fortbildung!$J$7:$J$30)","v":0},0]
["sonstige Sachausgaben ",{"$f":"SUMIF('sonstige_ Sachausgaben'!$C$7:$C$30,\"ASB\",'sonstige_ Sachausgaben'!$H$7:$H$30)","v":0},{"$f":"SUMIF('sonstige_ Sachausgaben'!$C$7:$C$30,\"SIB\",'sonstige_ Sachausgaben'!$H$7:$H$30)","v":0},{"$f":"SUMIF('sonstige_ Sachausgaben'!$C$7:$C$30,\"SBB\",'sonstige_ Sachausgaben'!$H$7:$H$30)","v":0},{"$f":"SUMIF('sonstige_ Sachausgaben'!$C$7:$C$30,\"EL\",'sonstige_ Sachausgaben'!$H$7:$H$30)","v":0},{"$f":"SUMIF('sonstige_ Sachausgaben'!$C$7:$C$30,\"G\",'sonstige_ Sachausgaben'!$H$7:$H$30)","v":0},0]
["Gesamtausgaben Sachkosten",{"$f":"SUM(B41:B48)","v":0},{"$f":"SUM(C41:C48)","v":0},{"$f":"SUM(D41:D48)","v":0},{"$f":"SUM(E41:E48)","v":0},{"$f":"SUM(F41:F48)","v":0},0]
[]
["Gesamtausgaben",{"$f":"IF(B28=0,\"\",SUM(B28+B38+B49))","v":""},{"$f":"IF(C28=0,\"\",SUM(C28+C38+C49))","v":""},"","","",0]
[]
[]
["Die Richtigkeit der Eintragungen und des Abschlusses wird hiermit bescheinigt"]
["Es wird bestätigt, dass die Ausgaben notwendig waren, dass wirtschaftlich und sparsam"]
["verfahren worden ist und die Angaben mit den Büchern bzw. Belegen übereinstimmen."]
[]
[]
[]
[]
["rechtsverbindliche Unterschrift",null,null,"Datum"]
["des Zuwendungsempfängers"]
[]
[]
[]
[]
["Name in Druckschrift"]

{"sheet":"hauptamtliches Personal","index":3,"n_rows":42,"n_cols":13,"rows_kept":42,"cut":false,"hidden":false,"merged":[[1,5,1,9],[2,0,2,3],[2,5,2,9],[1,3,1,4],[3,0,3,3]]}
["hauptamtliches Personal"]
[null,null,null,"Gesamtausgaben",null,"Stellenanteil",null,null,null,null,"anerkannte Gesamtausgaben",null,""]
["IST:",null,null,":",{"$f":"SUM(I7:I39)","v":0},{"$f":"SUMIF(E7:E42,\"Fachkraft\",F7:F42)","v":0},null,null,null,null,{"$f":"SUM(J7:J39)","v":0}]
["Beantragt lt. Zuwendungsbescheid"]
[]
["Lfd. Nr.","Beratungsstandort","Beratungsart","Name (h.P.) oder Pseudonym","Einsatz als","Stellen-anteil","beschäftigt seit","Qualifikation","abgerechneter Betrag","anerkannter Betrag","Bemerkungen der Bewilligungsbehörde"]
[1]
[{"$f":"A7+1","v":2}]
[{"$f":"A8+1","v":3}]
[4]
[5]
[6]
[7]
[8]
[9]
[10]
[11]
[12]
[13]
[14]
[15]
[16]
[17]
[18]
[19]
[20]
[21]
[22]
[23]
[24]
[25]
[26]
[27]
[28]
[29]
[30]
[31]
[32]
[33]
[34]
[35]
[36]

{"sheet":"nebenamtliches Personal","index":4,"n_rows":41,"n_cols":11,"rows_kept":41,"cut":false,"hidden":false,"merged":[[3,0,3,3],[5,0,5,3],[5,6,5,8],[4,0,4,3]]}
["nebenamtliches Personal"]
[]
[null,null,null,null,"Gesamtausgaben",null,null,null,"anerkannte Gesamt-ausgaben",null,""]
["IST:",null,null,":",{"$f":"SUM(G8:G32)","v":0},null,null,null,{"$f":"SUM(H8:H37)","v":0}]
["Beantragt lt. Zuwendungsbescheid"]
[]
["Lfd. Nr.","Beratungsstandort","Beratungsart","Name (h.P.) oder Pseudonym","Einsatz als","Umfang in Stunden","abgerechneter Betrag","anerkannter Betrag","Bemerkungen der Bewilligungsbehörde"]
[1]
[{"$f":"A8+1","v":2}]
[{"$f":"A9+1","v":3}]
[4]
[5]
[6]
[7]
[8]
[9]
[10]
[11]
[12]
[13]
[14]
[15]
[16]
[17]
[18]
[19]
[20]
[21]
[22]
[23]
[24]
[25]
[26]
[27]
[28]
[29]
[30]
[31]
[32]
[33]
[34]

{"sheet":"Büroausgaben ","index":5,"n_rows":38,"n_cols":9,"rows_kept":38,"cut":false,"hidden":false,"merged":[[2,0,2,3],[3,0,3,3]]}
["Büroausgaben"]
[null,null,null,null,"Gesamtausgaben",null,null,null,"anerkannte Gesamt-ausgaben"]
["IST:",null,null,":",{"$f":"SUM(F7:F38)","v":0},null,null,"Summe:",{"$f":"SUM(H7:H38)","v":0}]
["Beantragt lt. Zuwendungsbescheid"]
[]
["Lfd. Nr.","Beratungsstandort","Beratungsart","Beleg-Nr.","Artikelübersicht          ","abgerechneter Betrag","Zahlungsdatum","anerkannter Betrag","Bemerkungen der Bewilligungsbehörde"]
[1]
[{"$f":"A7+1","v":2}]
[{"$f":"A8+1","v":3}]
[4]
[5]
[6]
[7]
[8]
[9]
[10]
[11]
[12]
[13]
[14]
[15]
[16]
[17]
[18]
[19]
[20]
[21]
[22]
[23]
[24]
[25]
[26]
[27]
[28]
[29]
[30]
[31]
[32]

{"sheet":"Reiseausgaben","index":6,"n_rows":39,"n_cols":20,"rows_kept":39,"cut":false,"hidden":false,"merged":[[2,0,2,4],[3,1,3,4]]}
["Reiseausgaben"]
[null,null,null,null,null,"Gesamtausgaben",null,null,null,null,null,null,null,null,null,null,null,null,null,"anerkannte Gesamtausgaben"]
["IST:",null,null,null,null,{"$f":"SUM(R7:R38)","v":0},null,null,null,null,null,null,null,null,null,null,null,null,"Summe:",{"$f":"SUM(S7:S37)","v":0}]
[null,"Beantragt lt. Zuwendungsbescheid"]
[]
["Lfd. Nr.","Beratungs-standort","Beratungsart","KFZ-Kennzeichen","Beleg-Nr.","Name od. Pseudonym                                                                                                                   ","Abrechnungs-\nzeitraum\n(Monat, Quartal, Jahr)","PLZ / Arbeitsort","Anz. Mitfahrer (NUR bei Privat-PKW mgl.)","km-Summe Mitnahme","Entschä-digung Mitnahme (lt. LRKG M-V)","Fahrzeugart\n(Privat/Dienst PKW;Fahrrad;E-PKW)","km (Hin- u. Rückfahrt)","Entschä-digungssatz nach LRKG M-V","sonst. Ausgaben (Fahrscheine, Parken…)","Ausgaben für Dienst-PKW (Treibstoff,  Schmier-stoffe) ","Zahlungs-datum (TT.MM.JJJJ)","abgerechneter Gesamtbetrag             (Formel)","anerkannter Betrag","Bemerkung der Bewilligungsbehörde"]
[1,null,null,null,null,null,null,null,null,null,null,null,null,null,null,null,null,{"$f":"(I7*J7*K7)+(M7*N7)+O7+P7","v":0}]
[{"$f":"A7+1","v":2},null,null,null,null,null,null,null,null,null,null,null,null,null,null,null,null,{"$f":"(I8*J8*K8)+(M8*N8)+O8+P8","v":0}]
[{"$f":"A8+1","v":3},null,null,null,null,null,null,null,null,null,null,null,null,null,null,null,null,0]
[4,null,null,null,null,null,null,null,null,null,null,null,null,null,null,null,null,0]
[5,null,null,null,null,null,null,null,null,null,null,null,null,null,null,null,null,0]
[6,null,null,null,null,null,null,null,null,null,null,null,null,null,null,null,null,0]
[7,null,null,null,null,null,null,null,null,null,null,null,null,null,null,null,null,0]
[8,null,null,null,null,null,null,null,null,null,null,null,null,null,null,null,null,0]
[9,null,null,null,null,null,null,null,null,null,null,null,null,null,null,null,null,0]
[10,null,null,null,null,null,null,null,null,null,null,null,null,null,null,null,null,0]
[11,null,null,null,null,null,null,null,null,null,null,null,null,null,null,null,null,0]
[12,null,null,null,null,null,null,null,null,null,null,null,null,null,null,null,null,0]
[13,null,null,null,null,null,null,null,null,null,null,null,null,null,null,null,null,0]
[14,null,null,null,null,null,null,null,null,null,null,null,null,null,null,null,null,0]
[15,null,null,null,null,null,null,null,null,null,null,null,null,null,null,null,null,0]
[16,null,null,null,null,null,null,null,null,null,null,null,null,null,null,null,null,0]
[17,null,null,null,null,null,null,null,null,null,null,null,null,null,null,null,null,0]
[18,null,null,null,null,null,null,null,null,null,null,null,null,null,null,null,null,0]
[19,null,null,null,null,null,null,null,null,null,null,null,null,null,null,null,null,0]
[20,null,null,null,null,null,null,null,null,null,null,null,null,null,null,null,null,0]
[21,null,null,null,null,null,null,null,null,null,null,null,null,null,null,null,null,0]
[22,null,null,null,null,null,null,null,null,null,null,null,null,null,null,null,null,0]
[23,null,null,null,null,null,null,null,null,null,null,null,null,null,null,null,null,0]
[24,null,null,null,null,null,null,null,null,null,null,null,null,null,null,null,null,0]
[25,null,null,null,null,null,null,null,null,null,null,null,null,null,null,null,null,0]
[26,null,null,null,null,null,null,null,null,null,null,null,null,null,null,null,null,0]
[27,null,null,null,null,null,null,null,null,null,null,null,null,null,null,null,null,0]
[28,null,null,null,null,null,null,null,null,null,null,null,null,null,null,null,null,0]
[29,null,null,null,null,null,null,null,null,null,null,null,null,null,null,null,null,0]
[30,null,null,null,null,null,null,null,null,null,null,null,null,null,null,null,null,0]
[31,null,null,null,null,null,null,null,null,null,null,null,null,null,null,null,null,0]
[32,null,null,null,null,null,null,null,null,null,null,null,null,null,null,null,null,0]
[33,null,null,null,null,null,null,null,null,null,null,null,null,null,null,null,null,{"$f":"(I39*J39*K39)+(M39*N39)+O39+P39","v":0}]

{"sheet":"Übernachtungskosten","index":7,"n_rows":43,"n_cols":18,"rows_kept":43,"cut":false,"hidden":false,"merged":[[3,0,3,3],[5,5,5,7],[5,10,5,12],[2,0,2,3],[1,14,4,14],[5,9,6,9],[5,8,6,8],[5,4,6,4],[5,3,6,3],[5,2,6,2],[5,1,6,1],[5,0,6,0],[5,17,6,17],[5,16,6,16],[5,14,6,14],[5,15,6,15],[5,13,6,13]]}
["Übernachtungsausgaben"]
[null,null,null,null,"Gesamtausgaben",null,null,null,null,null,null,null,null,null,null,null,null,"anerkannte Gesamtausgaben"]
["IST:",null,null,null,{"$f":"SUM(P8:P40)","v":0},null,null,null,null,null,null,null,null,null,null,null,"Summe:",{"$f":"SUM(Q8:Q40)","v":0}]
["Beantragt lt. Zuwendungsbescheid"]
[]
["Lfd. Nr.","Beratungsart","Beleg-Nr.","Name oder Pseudonym","Übernachtung mit Beleg","unentgeltliche Verpflegung",null,null,"Übernach-tungs-ausgaben (lt. LRKG M-V)","Übernachtungszeitraum (Beginn)","Dauer der Dienstreise",null,null,"Verpflegungspauschale/Tagegeld (lt. LRKG M-V)","Zahlungstag","Betrag (Formel)","anerkannter Betrag","Bemerkung der Bewilligungsbehörde"]
[null,null,null,null,null,"Frühstück","Mittag","Abendbrot",null,null,"über 8 h","über 14 h","24 h"]
[1,null,null,null,null,null,null,null,null,null,null,null,null,null,null,{"$f":"I8+N8","v":0}]
[{"$f":"A8+1","v":2},null,null,null,null,null,null,null,null,null,null,null,null,null,null,0]
[{"$f":"A9+1","v":3},null,null,null,null,null,null,null,null,null,null,null,null,null,null,0]
[4,null,null,null,null,null,null,null,null,null,null,null,null,null,null,0]
[5,null,null,null,null,null,null,null,null,null,null,null,null,null,null,0]
[6,null,null,null,null,null,null,null,null,null,null,null,null,null,null,0]
[7,null,null,null,null,null,null,null,null,null,null,null,null,null,null,0]
[8,null,null,null,null,null,null,null,null,null,null,null,null,null,null,0]
[9,null,null,null,null,null,null,null,null,null,null,null,null,null,null,0]
[10,null,null,null,null,null,null,null,null,null,null,null,null,null,null,0]
[11,null,null,null,null,null,null,null,null,null,null,null,null,null,null,0]
[12,null,null,null,null,null,null,null,null,null,null,null,null,null,null,0]
[13,null,null,null,null,null,null,null,null,null,null,null,null,null,null,0]
[14,null,null,null,null,null,null,null,null,null,null,null,null,null,null,0]
[15,null,null,null,null,null,null,null,null,null,null,null,null,null,null,0]
[16,null,null,null,null,null,null,null,null,null,null,null,null,null,null,0]
[17,null,null,null,null,null,null,null,null,null,null,null,null,null,null,0]
[18,null,null,null,null,null,null,null,null,null,null,null,null,null,null,0]
[19,null,null,null,null,null,null,null,null,null,null,null,null,null,null,0]
[20,null,null,null,null,null,null,null,null,null,null,null,null,null,null,0]
[21,null,null,null,null,null,null,null,null,null,null,null,null,null,null,0]
[22,null,null,null,null,null,null,null,null,null,null,null,null,null,null,0]
[23,null,null,null,null,null,null,null,null,null,null,null,null,null,null,0]
[24,null,null,null,null,null,null,null,null,null,null,null,null,null,null,0]
[25,null,null,null,null,null,null,null,null,null,null,null,null,null,null,0]
[26,null,null,null,null,null,null,null,null,null,null,null,null,null,null,0]
[27,null,null,null,null,null,null,null,null,null,null,null,null,null,null,0]
[28,null,null,null,null,null,null,null,null,null,null,null,null,null,null,0]
[29,null,null,null,null,null,null,null,null,null,null,null,null,null,null,0]
[30,null,null,null,null,null,null,null,null,null,null,null,null,null,null,0]
[31,null,null,null,null,null,null,null,null,null,null,null,null,null,null,0]
[32,null,null,null,null,null,null,null,null,null,null,null,null,null,null,0]
[33,null,null,null,null,null,null,null,null,null,null,null,null,null,null,0]
[34,null,null,null,null,null,null,null,null,null,null,null,null,null,null,0]
[35,null,null,null,null,null,null,null,null,null,null,null,null,null,null,0]
[36,null,null,null,null,null,null,null,null,null,null,null,null,null,null,0]

{"sheet":"Raummiete_ Nebenausgaben ","index":8,"n_rows":33,"n_cols":12,"rows_kept":33,"cut":false,"hidden":false,"merged":[[2,0,2,3],[3,0,3,3]]}
["Raummiete/ Mietnebenausgaben"]
[null,null,null,null,"Gesamtausgaben",null,null,null,null,null,"anerkannte Gesamt-ausgaben"]
["IST:",null,null,":",{"$f":"SUM(J7:J33)","v":0},null,null,null,null,"Summe:",{"$f":"SUM(K7:K31)","v":0}]
["Beantragt lt. Zuwendungsbescheid"]
[]
["Lfd. Nr.","Beratungsstandort","Beratungsart","Beleg-Nr.","Räumlichkeiten                                                 (Bezeichnung der genutzten Räume)","anteilige Nutzung (qm²)","Betrag\nmonatlich","Nutzungs-dauer in Monaten","Zahlungstag","Betrag","anerkannter Betrag","Bemerkungen der Bewilligungsbehörde"]
[1,null,null,null,null,null,null,null,null,{"$f":"G7*H7","v":0}]
[{"$f":"A7+1","v":2},null,null,null,null,null,null,null,null,{"$f":"G8*H8","v":0}]
[{"$f":"A8+1","v":3},null,null,null,null,null,null,null,null,{"$f":"G9*H9","v":0}]
[4,null,null,null,null,null,null,null,null,0]
[5,null,null,null,null,null,null,null,null,0]
[6,null,null,null,null,null,null,null,null,0]
[7,null,null,null,null,null,null,null,null,0]
[8,null,null,null,null,null,null,null,null,0]
[9,null,null,null,null,null,null,null,null,0]
[10,null,null,null,null,null,null,null,null,0]
[11,null,null,null,null,null,null,null,null,0]
[12,null,null,null,null,null,null,null,null,0]
[13,null,null,null,null,null,null,null,null,0]
[14,null,null,null,null,null,null,null,null,0]
[15,null,null,null,null,null,null,null,null,0]
[16,null,null,null,null,null,null,null,null,0]
[17,null,null,null,null,null,null,null,null,0]
[18,null,null,null,null,null,null,null,null,0]
[19,null,null,null,null,null,null,null,null,0]
[20,null,null,null,null,null,null,null,null,0]
[21,null,null,null,null,null,null,null,null,0]
[22,null,null,null,null,null,null,null,null,0]
[23,null,null,null,null,null,null,null,null,0]
[24,null,null,null,null,null,null,null,null,0]
[25,null,null,null,null,null,null,null,null,0]
[26,null,null,null,null,null,null,null,null,0]
[27,null,null,null,null,null,null,null,null,0]

{"sheet":"Leasing","index":9,"n_rows":31,"n_cols":14,"rows_kept":31,"cut":false,"hidden":false,"merged":[[3,1,3,4],[2,0,2,4]]}
["Leasing"]
[null,null,null,null,null,"Gesamtausgaben",null,null,null,null,null,null,"anerkannte Gesamtausgaben"]
["IST:",null,null,null,null,{"$f":"SUM(L7:L31)","v":0},null,null,null,null,null,"Summe:",{"$f":"SUM(M7:M29)","v":0}]
[null,"Beantragt lt. Zuwendungsbescheid"]
[]
["Lfd. Nr.","Beratungs-standort","Beratungsart","Beleg-Nr.","Leasinggeber ","                                    Gegenstand","Leasingrate monatlich gesamt","Abrechnungszyklus","Leasingrate monatlich  anteilig im Projekt","Nutzungs-dauer in Monaten","Zahlungstag","Betrag","anerkannter Betrag","Bemerkung der Bewilligungsbehörde"]
[1,null,null,null,null,null,null,null,null,null,null,{"$f":"I7*J7","v":0}]
[{"$f":"A7+1","v":2},null,null,null,null,null,null,null,null,null,null,{"$f":"I8*J8","v":0}]
[{"$f":"A8+1","v":3},null,null,null,null,null,null,null,null,null,null,0]
[4,null,null,null,null,null,null,null,null,null,null,0]
[5,null,null,null,null,null,null,null,null,null,null,0]
[6,null,null,null,null,null,null,null,null,null,null,0]
[7,null,null,null,null,null,null,null,null,null,null,0]
[8,null,null,null,null,null,null,null,null,null,null,0]
[9,null,null,null,null,null,null,null,null,null,null,0]
[10,null,null,null,null,null,null,null,null,null,null,0]
[11,null,null,null,null,null,null,null,null,null,null,0]
[12,null,null,null,null,null,null,null,null,null,null,0]
[13,null,null,null,null,null,null,null,null,null,null,0]
[14,null,null,null,null,null,null,null,null,null,null,0]
[15,null,null,null,null,null,null,null,null,null,null,0]
[16,null,null,null,null,null,null,null,null,null,null,0]
[17,null,null,null,null,null,null,null,null,null,null,0]
[18,null,null,null,null,null,null,null,null,null,null,0]
[19,null,null,null,null,null,null,null,null,null,null,0]
[20,null,null,null,null,null,null,null,null,null,null,0]
[21,null,null,null,null,null,null,null,null,null,null,0]
[22,null,null,null,null,null,null,null,null,null,null,0]
[23,null,null,null,null,null,null,null,null,null,null,0]
[24,null,null,null,null,null,null,null,null,null,null,0]
[25,null,null,null,null,null,null,null,null,null,null,0]

{"sheet":"Ausstattung_ Ersatzbeschaffung","index":10,"n_rows":30,"n_cols":11,"rows_kept":30,"cut":false,"hidden":false,"merged":[[2,0,2,3],[3,0,3,3]]}
["Ausstattung/ Ersatzbeschaffung"]
[null,null,null,null,"Gesamtausgaben",null,null,null,null,"anerkannte Gesamtausgaben"]
["IST:",null,null,":",{"$f":"SUM(I7:I30)","v":0},null,null,null,"Summe:",{"$f":"SUM(J7:J30)","v":0}]
["Beantragt lt. Zuwendungsbescheid"]
[]
["Lfd. Nr.","Beratungsstandort","Beratungsart","Beleg-Nr.","Artikel","Erläuterung/ Bedarfsbegründung","Betrag","Zahlungstag","Betrag","anerkannter Betrag","Bemerkung der Bewilligungsbehörde"]
[1,null,null,null,null,null,null,null,{"$f":"G7","v":0}]
[{"$f":"A7+1","v":2},null,null,null,null,null,null,null,{"$f":"G8","v":0}]
[{"$f":"A8+1","v":3},null,null,null,null,null,null,null,0]
[4,null,null,null,null,null,null,null,0]
[5,null,null,null,null,null,null,null,0]
[6,null,null,null,null,null,null,null,0]
[7,null,null,null,null,null,null,null,0]
[8,null,null,null,null,null,null,null,0]
[9,null,null,null,null,null,null,null,0]
[10,null,null,null,null,null,null,null,0]
[11,null,null,null,null,null,null,null,0]
[12,null,null,null,null,null,null,null,0]
[13,null,null,null,null,null,null,null,0]
[14,null,null,null,null,null,null,null,0]
[15,null,null,null,null,null,null,null,0]
[16,null,null,null,null,null,null,null,0]
[17,null,null,null,null,null,null,null,0]
[18,null,null,null,null,null,null,null,0]
[19,null,null,null,null,null,null,null,0]
[20,null,null,null,null,null,null,null,0]
[21,null,null,null,null,null,null,null,0]
[22,null,null,null,null,null,null,null,0]
[23,null,null,null,null,null,null,null,0]
[24,null,null,null,null,null,null,null,0]

{"sheet":"Fortbildung","index":11,"n_rows":30,"n_cols":12,"rows_kept":30,"cut":false,"hidden":false,"merged":[[2,0,2,3],[3,0,3,3]]}
["Fortbildung"]
[null,null,null,null,"Gesamtausgaben",null,null,null,null,null,"anerkannte Gesamtausgaben"]
["IST:",null,null,":",{"$f":"SUM(J7:J30)","v":0},null,null,null,null,"Summe:",{"$f":"SUM(K7:K30)","v":0}]
["Beantragt lt. Zuwendungsbescheid"]
[]
["Lfd. Nr.","Beratungsstandort","Beratungsart","Beleg-Nr.","Name/Pseudonym des Fortzubildenden","Inhalt der Fortbildung","Zeitpunkt der Fortbildung","abgerechneter Betrag","Zahlungstag","Betrag","anerkannter Betrag","Bemerkung der Bewilligungsbehörde"]
[1,null,null,null,null,null,null,null,null,{"$f":"H7","v":0}]
[{"$f":"A7+1","v":2},null,null,null,null,null,null,null,null,{"$f":"H8","v":0}]
[{"$f":"A8+1","v":3},null,null,null,null,null,null,null,null,0]
[4,null,null,null,null,null,null,null,null,0]
[5,null,null,null,null,null,null,null,null,0]
[6,null,null,null,null,null,null,null,null,0]
[7,null,null,null,null,null,null,null,null,0]
[8,null,null,null,null,null,null,null,null,0]
[9,null,null,null,null,null,null,null,null,0]
[10,null,null,null,null,null,null,null,null,0]
[11,null,null,null,null,null,null,null,null,0]
[12,null,null,null,null,null,null,null,null,0]
[13,null,null,null,null,null,null,null,null,0]
[14,null,null,null,null,null,null,null,null,0]
[15,null,null,null,null,null,null,null,null,0]
[16,null,null,null,null,null,null,null,null,0]
[17,null,null,null,null,null,null,null,null,0]
[18,null,null,null,null,null,null,null,null,0]
[19,null,null,null,null,null,null,null,null,0]
[20,null,null,null,null,null,null,null,null,0]
[21,null,null,null,null,null,null,null,null,0]
[22,null,null,null,null,null,null,null,null,0]
[23,null,null,null,null,null,null,null,null,0]
[24,null,null,null,null,null,null,null,null,0]

{"sheet":"sonstige_ Sachausgaben","index":12,"n_rows":30,"n_cols":10,"rows_kept":30,"cut":false,"hidden":false,"merged":[[2,0,2,3],[3,0,3,3]]}
["sonstige Sachausgaben"]
[null,null,null,null,"Gesamtausgaben",null,null,null,"anerkannte Gesamtausgaben"]
["IST:",null,null,":",{"$f":"SUM(H7:H30)","v":0},null,null,"Summe:",{"$f":"SUM(I7:I30)","v":0}]
["Beantragt lt. Zuwendungsbescheid"]
[]
["Lfd. Nr.","Beratungsstandort","Beratungsart","Beleg-Nr.","Inhalt","abgerechneter Betrag","Zahlungstag","Betrag","anerkannter Betrag","Bemerkung der Bewilligungsbehörde"]
[1,null,null,null,null,null,null,{"$f":"F7","v":0}]
[{"$f":"A7+1","v":2},null,null,null,null,null,null,{"$f":"F8","v":0}]
[{"$f":"A8+1","v":3},null,null,null,null,null,null,0]
[4,null,null,null,null,null,null,0]
[5,null,null,null,null,null,null,0]
[6,null,null,null,null,null,null,0]
[7,null,null,null,null,null,null,0]
[8,null,null,null,null,null,null,0]
[9,null,null,null,null,null,null,0]
[10,null,null,null,null,null,null,0]
[11,null,null,null,null,null,null,0]
[12,null,null,null,null,null,null,0]
[13,null,null,null,null,null,null,0]
[14,null,null,null,null,null,null,0]
[15,null,null,null,null,null,null,0]
[16,null,null,null,null,null,null,0]
[17,null,null,null,null,null,null,0]
[18,null,null,null,null,null,null,0]
[19,null,null,null,null,null,null,0]
[20,null,null,null,null,null,null,0]
[21,null,null,null,null,null,null,0]
[22,null,null,null,null,null,null,0]
[23,null,null,null,null,null,null,0]
[24,null,null,null,null,null,null,0]

{"sheet":"Zusammenfassung","index":13,"n_rows":62,"n_cols":9,"rows_kept":62,"cut":false,"hidden":false,"merged":[[37,0,37,5],[27,1,27,2],[17,1,17,2],[26,1,26,3],[50,0,50,5],[49,0,49,5],[48,0,48,5],[47,0,47,3],[44,4,44,5],[43,1,43,2],[44,1,44,2],[38,0,38,5],[41,1,41,2],[42,1,42,2],[45,1,45,2],[30,1,30,2],[61,0,61,2],[60,0,60,2],[56,0,56,5],[55,0,55,2],[55,4,55,5],[2,7,3,8],[54,0,54,2],[28,1,28,2],[36,1,36,2],[53,0,53,5],[6,1,6,2],[2,0,2,5],[16,1,16,2],[40,1,40,2],[3,0,3,5],[5,1,5,2],[8,1,8,2],[14,1,14,2],[15,1,15,2],[9,1,9,2],[11,0,11,5],[29,1,29,2],[7,1,7,2],[35,1,35,2],[34,1,34,2],[33,1,33,2],[32,1,32,2],[31,1,31,2],[13,1,13,2],[12,0,12,5]]}
[]
[]
["Einnahmen",null,null,null,null,null,null,"R P A"]
["(Aufstellung des erhaltenen Zuschusses und sonstiger Einnahmen im Zusammenhang mit dem geförderten Vorhaben)"]
[]
[null,"Einnahmeart",null,"Einnahmen lt. Fördervereinbarung","abgerechnete Einnahmen","Differenz zum Bescheid %",null,"anerkannte Einnahmen","Unterschied zum Bescheid\n in %"]
[null,"Zuwendungen aus Landesmitteln",null,{"$f":"'Gesamtübersicht Beratungslandsc'!F15","v":0},{"$f":"'Gesamtübersicht Beratungslandsc'!G15","v":0},{"$f":"IF(D7=0,\"\",($E7/$D7)-1)","v":""}]
[null,"Zuwendung aus Kreismitteln",null,{"$f":"'Gesamtübersicht Beratungslandsc'!F16","v":0},{"$f":"'Gesamtübersicht Beratungslandsc'!G16","v":0},{"$f":"IF(D8=0,\"\",($E8/$D8)-1)","v":""}]
[null,"Eigenmittel des Trägers",null,{"$f":"'Gesamtübersicht Beratungslandsc'!F17","v":0},{"$f":"'Gesamtübersicht Beratungslandsc'!G17","v":0},{"$f":"IF(D9=0,\"\",($E9/$D9)-1)","v":""}]
[null,"Summe der Gesamteinnahmen",null,{"$f":"SUM(D7:D9)","v":0},{"$f":"SUM(E7:E9)","v":0},{"$f":"IF(D10=0,\"\",(E10/D10)-1)","v":""},null,{"$f":"SUM(H7:H9)","v":0}]
[]
["Ausgaben"]
["(Aufstellung der tatsächlichen Ausgaben im Zusammenhang mit dem geförderten Vorhaben)"]
[null,"Personalausgaben",null,"abgerechnete Ausgaben","beantragte\nAusgaben",null,null,"anerkannte  Ausgaben","Unterschied zum Bescheid\n in %"]
[null,"hauptamtliches Personal",null,{"$f":"'hauptamtliches Personal'!E3","v":0},{"$f":"'hauptamtliches Personal'!E4","v":0},null,null,{"$f":"'hauptamtliches Personal'!K3","v":0},{"$f":"IF(H15=0,\"\",(H15/'Gesamtübersicht Beratungslandsc'!B24)-1)","v":""}]
[null,"nebenamtliches Personal",null,{"$f":"'nebenamtliches Personal'!E4","v":0},{"$f":"'nebenamtliches Personal'!E5","v":0},null,null,{"$f":"'nebenamtliches Personal'!I4","v":0},{"$f":"IF(H16=0,\"\",(H16/'nebenamtliches Personal'!E5)-1)","v":""}]
[null,"Gesamtausgaben",null,{"$f":"SUM(D15:D16)","v":0},{"$f":"E15+E16","v":0},null,null,{"$f":"SUM(H15:H16)","v":0},{"$f":"IF(H17=0,\"\",(H17/('hauptamtliches Personal'!E4+'nebenamtliches Personal'!E5))-1)","v":""}]
[]
[null,null,"Sachkostenpauschale","Fachkräfteanteil","Verwaltungskräfte","Betrag "]
[null,"ASB",{"$f":"'Gesamtübersicht Beratungslandsc'!B33","v":""},{"$f":"IF(C20=\"\",\"\",'Gesamtübersicht Beratungslandsc'!B26)","v":""},{"$f":"IF(C20=\"\",\"\",'Gesamtübersicht Beratungslandsc'!B$27)","v":""},{"$f":"IF(C20=\"\",\"0,00 €\",D20*C20)","v":"0,00 €"}]
[null,"SIB",{"$f":"'Gesamtübersicht Beratungslandsc'!C33","v":""},{"$f":"IF(C21=\"\",\"\",'Gesamtübersicht Beratungslandsc'!C26)","v":""},{"$f":"IF(C21=\"\",\"\",'Gesamtübersicht Beratungslandsc'!C$27)","v":""},{"$f":"IF(C21=\"\",\"0,00 €\",D21*C21)","v":"0,00 €"}]
[null,"SBB",{"$f":"'Gesamtübersicht Beratungslandsc'!D33","v":""},{"$f":"IF(C22=\"\",\"\",'Gesamtübersicht Beratungslandsc'!D26)","v":""},{"$f":"IF(C22=\"\",\"\",'Gesamtübersicht Beratungslandsc'!D$27)","v":""},{"$f":"IF(C22=\"\",\"0,00 €\",D22*C22)","v":"0,00 €"}]
[null,"EL",{"$f":"'Gesamtübersicht Beratungslandsc'!E33","v":""},{"$f":"IF(C23=\"\",\"\",'Gesamtübersicht Beratungslandsc'!E26)","v":""},{"$f":"IF(C23=\"\",\"\",'Gesamtübersicht Beratungslandsc'!E$27)","v":""},{"$f":"IF(C23=\"\",\"0,00 €\",D23*C23)","v":"0,00 €"}]
[null,"G",{"$f":"'Gesamtübersicht Beratungslandsc'!F33","v":""},{"$f":"IF(C24=\"\",\"\",'Gesamtübersicht Beratungslandsc'!F26)","v":""},{"$f":"IF(C24=\"\",\"\",'Gesamtübersicht Beratungslandsc'!F$27)","v":""},{"$f":"IF(C24=\"\",\"0,00 €\",D24*C24)","v":"0,00 €"}]
[null,null,null,null,"Summe",{"$f":"SUM(F20:F24)","v":0}]
[]
[null,"Sachkosten Einzelabrechnung "]
[null,"Sachkosten",null,"abgerechnete Ausgaben","beantragte\nAusgaben","Unterschied zum Bescheid\n in %",null,"anerkannte  Ausgaben","Unterschied zum Bescheid\n in %"]
[null,"Bürosausgaben",null,{"$f":"'Gesamtübersicht Beratungslandsc'!G41","v":0},{"$f":"'Büroausgaben '!E4","v":0},{"$f":"IF(D29=0,\"\",($D29/$E29)-1)","v":""},null,{"$f":"'Büroausgaben '!I3","v":0},{"$f":"IF(E29=0,\"\",($H29/$E29)-1)","v":""}]
[null,"Reiseausgaben ",null,{"$f":"'Gesamtübersicht Beratungslandsc'!G42","v":0},{"$f":"Reiseausgaben!F4","v":0},{"$f":"IF(D30=0,\"\",($D30/$E30)-1)","v":""},null,{"$f":"Reiseausgaben!T3","v":0},{"$f":"IF(E30=0,\"\",($H30/$E30)-1)","v":""}]
[null,"Übernachtungskosten",null,{"$f":"'Gesamtübersicht Beratungslandsc'!G43","v":0},{"$f":"Übernachtungskosten!E4","v":0},"",null,{"$f":"Übernachtungskosten!R3","v":0},""]
[null,"Raummiete / Nebenkosten",null,{"$f":"'Gesamtübersicht Beratungslandsc'!G44","v":0},{"$f":"'Raummiete_ Nebenausgaben '!E4","v":0},"",null,{"$f":"'Raummiete_ Nebenausgaben '!K3","v":0},""]
[null,"Leasing",null,{"$f":"'Gesamtübersicht Beratungslandsc'!G45","v":0},{"$f":"Leasing!F4","v":0},"",null,{"$f":"Leasing!M3","v":0},""]
[null,"Ausstattung / Ersatzbeschaffung",null,{"$f":"'Gesamtübersicht Beratungslandsc'!G46","v":0},{"$f":"'Ausstattung_ Ersatzbeschaffung'!E4","v":0},"",null,{"$f":"'Ausstattung_ Ersatzbeschaffung'!J3","v":0},""]
[null,"Fortbildung",null,{"$f":"'Gesamtübersicht Beratungslandsc'!G47","v":0},{"$f":"Fortbildung!E4","v":0},"",null,{"$f":"Fortbildung!K3","v":0},""]
[null,"sonstige Sachausgaben ",null,{"$f":"'Gesamtübersicht Beratungslandsc'!G48","v":0},{"$f":"'sonstige_ Sachausgaben'!E4","v":0},"",null,{"$f":"'sonstige_ Sachausgaben'!I3","v":0},""]
[null,"Gesamtausgaben",null,{"$f":"SUM(D29:D36)","v":0},{"$f":"SUM(E29:E36)","v":0},"",null,{"$f":"SUM(H29:H36)","v":0},""]
[""]
["vorläufige Darstellung der Gesamtfinanzierung"]
[null,null,null,"abgerechnet"]
[null,"Summe der tatsächlichen Ausgaben",null,{"$f":"D17+D37","v":0}]
[null,"Dritt-/ Eigenmittel",null,{"$f":"E9","v":0}]
[null,"Höhe der Landes- und Kreismittel\nbeantragt",null,{"$f":"D7+D8","v":0}]
[null,"Zahlungen aus Landes- und Kreismitteln (abgerechnet)",null,{"$f":"E7+E8","v":0}]
[null,"Abschlusszahlung",null,{"$f":"IF((D42+D41)-D44>0,(D41+D42)-D44,\"\")","v":""}]
[null,"Rückforderung",null,{"$f":"IF((D41+D42)-D44<0,(D41+D42)-D44,\"\")","v":""}]
[]
[""]
["Die Richtigkeit der Eintragungen und des Abschlusses wird hiermit bescheinigt"]
["Es wird bestätigt, dass die Ausgaben notwendig waren, dass wirtschaftlich und sparsam"]
["verfahren worden ist und die Angaben mit den Büchern bzw. Belegen übereinstimmen."]
[]
[]
[]
[]
["rechtsverbindliche Unterschrift",null,null,null,"Datum"]
["des Zuwendungsempfängers"]
[]
[]
[]
[]
["Name in Druckschrift"]